[Event "*** Titled Tuesday Blitz"]
[Site "Chess.com"]
[Date "2021.03.09"]
[Round "8"]
[White "ChrisTool2"]
[Black "atwalcb"]
[Result "0-1"]
[WhiteElo "2354"]
[BlackElo "2541"]
[TimeControl "180+1"]
[EndTime "11:32:44 PST"]
[Termination "atwalcb won by resignation"]

1. d4 {[%clk 0:03:00.9]} 1... d6 {[%clk 0:02:54.8]} 2. c4 {[%clk 0:03:00.1]}
2... e5 {[%clk 0:02:54.5]} 3. g3 {[%clk 0:02:52.3]} 3... exd4 {[%clk 0:02:53.2]}
4. Qxd4 {[%clk 0:02:50.9]} 4... Nc6 {[%clk 0:02:53.4]} 5. Qd2 {[%clk 0:02:49.7]}
5... g6 {[%clk 0:02:52.9]} 6. Bg2 {[%clk 0:02:47.1]} 6... Bg7 {[%clk 0:02:53]}
7. Nf3 {[%clk 0:02:46.1]} 7... Nf6 {[%clk 0:02:48.7]} 8. Nc3 {[%clk 0:02:46]}
8... O-O {[%clk 0:02:48.6]} 9. O-O {[%clk 0:02:45.7]} 9... Be6 {[%clk
0:02:48.6]} 10. b3 {[%clk 0:02:45.7]} 10... Ne4 {[%clk 0:02:43.7]} 11. Nxe4
{[%clk 0:02:43.6]} 11... Bxa1 {[%clk 0:02:43.4]} 12. Bb2 {[%clk 0:02:42.9]}
12... Bxb2 {[%clk 0:02:43.5]} 13. Qxb2 {[%clk 0:02:43.7]} 13... f6 {[%clk
0:02:40.8]} 14. Rd1 {[%clk 0:02:41.9]} 14... Qe7 {[%clk 0:02:29.2]} 15. Qc3
{[%clk 0:02:30.1]} 15... Bf5 {[%clk 0:02:25.4]} 16. Nfd2 {[%clk 0:02:14.8]}
16... Ne5 {[%clk 0:02:20.5]} 17. Qd4 {[%clk 0:02:08.6]} 17... Bd7 {[%clk
0:02:16.3]} 18. Qd5+ {[%clk 0:01:38.1]} 18... Kg7 {[%clk 0:02:07.1]} 19. Qxb7
{[%clk 0:01:35.2]} 19... Bc6 {[%clk 0:02:06.4]} 20. Qb4 {[%clk 0:01:34.4]} 20...
f5 {[%clk 0:02:03.2]} 21. Nc3 {[%clk 0:01:25.3]} 21... Rfb8 {[%clk 0:01:46]} 22.
Qa5 {[%clk 0:01:21.1]} 22... Bxg2 {[%clk 0:01:36.8]} 23. Kxg2 {[%clk 0:01:21.1]}
23... c6 {[%clk 0:01:37.1]} 24. Nf3 {[%clk 0:01:17.5]} 24... Nxf3 {[%clk
0:01:33.6]} 25. exf3 {[%clk 0:01:18.4]} 25... Re8 {[%clk 0:01:28.5]} 26. Qa6
{[%clk 0:01:04.3]} 26... Qc7 {[%clk 0:01:24.8]} 27. b4 {[%clk 0:00:51.6]} 27...
Rab8 {[%clk 0:01:10.4]} 28. b5 {[%clk 0:00:48.8]} 28... Rec8 {[%clk 0:00:45.1]}
29. Qa3 {[%clk 0:00:39.8]} 29... cxb5 {[%clk 0:00:26.3]} 30. Nxb5 {[%clk
0:00:35.7]} 30... Qc5 {[%clk 0:00:26.8]} 31. Qc3+ {[%clk 0:00:29.2]} 31... Qe5
{[%clk 0:00:27]} 32. Rxd6 {[%clk 0:00:16.9]} 32... Qxc3 {[%clk 0:00:25.8]} 33.
Rd7+ {[%clk 0:00:17.2]} 33... Kf6 {[%clk 0:00:18.9]} 34. Nxc3 {[%clk 0:00:18.1]}
34... Rxc4 {[%clk 0:00:18.6]} 35. Ne2 {[%clk 0:00:15.1]} 35... g5 {[%clk
0:00:15.4]} 36. Rxa7 {[%clk 0:00:15]} 36... Rb2 {[%clk 0:00:14.9]} 37. Ra6+
{[%clk 0:00:12.2]} 37... Ke7 {[%clk 0:00:13.1]} 38. Ng1 {[%clk 0:00:11]} 38...
Rcc2 {[%clk 0:00:12.6]} 39. Nh3 {[%clk 0:00:09.8]} 39... g4 {[%clk 0:00:12.2]}
40. fxg4 {[%clk 0:00:08.1]} 40... fxg4 {[%clk 0:00:13.1]} 41. Ra7+ {[%clk
0:00:07.3]} 41... Kd8 {[%clk 0:00:11.6]} 42. Nf4 {[%clk 0:00:06.6]} 42... Rxf2+
{[%clk 0:00:11.1]} 43. Kg1 {[%clk 0:00:07.5]} 43... Rfc2 {[%clk 0:00:09.3]} 44.
Ra8+ {[%clk 0:00:05.1]} 44... Kc7 {[%clk 0:00:09.2]} 45. Nd5+ {[%clk 0:00:04]}
45... Kb7 {[%clk 0:00:08.8]} 46. Rf8 {[%clk 0:00:03.6]} 46... Rg2+ {[%clk
0:00:08]} 47. Kf1 {[%clk 0:00:03.1]} 47... Rxh2 {[%clk 0:00:08.4]} 48. Rf7+
{[%clk 0:00:04]} 48... Kc6 {[%clk 0:00:07.7]} 49. Kg1 {[%clk 0:00:04.1]} 49...
Kxd5 {[%clk 0:00:07.7]} 50. Rd7+ {[%clk 0:00:04.1]} 50... Kc6 {[%clk 0:00:07.9]}
51. Rf7 {[%clk 0:00:03.8]} 51... Rxa2 {[%clk 0:00:08.2]} 52. Rf6+ {[%clk
0:00:04.1]} 52... Kd5 {[%clk 0:00:08.5]} 53. Rf4 {[%clk 0:00:04.6]} 53... Ke6
{[%clk 0:00:08.6]} 54. Rxg4 {[%clk 0:00:04.7]} 54... Rhe2 {[%clk 0:00:08.7]} 55.
Kf1 {[%clk 0:00:03.6]} 55... Rec2 {[%clk 0:00:08.8]} 56. Re4+ {[%clk 0:00:03.8]}
56... Kd5 {[%clk 0:00:09.2]} 57. Re1 {[%clk 0:00:03.9]} 57... Rcb2 {[%clk
0:00:09.2]} 58. Rd1+ {[%clk 0:00:04.3]} 58... Kc4 {[%clk 0:00:09.5]} 59. Re1
{[%clk 0:00:05.1]} 59... Ra3 {[%clk 0:00:09.4]} 60. Rc1+ {[%clk 0:00:05.6]}
60... Rc3 {[%clk 0:00:09.3]} 61. Re1 {[%clk 0:00:05.3]} 61... Rbc2 {[%clk
0:00:09.7]} 62. Re4+ {[%clk 0:00:04.9]} 62... Kd3 {[%clk 0:00:09.5]} 63. Rh4
{[%clk 0:00:04.6]} 63... Rd2 {[%clk 0:00:09.5]} 64. Rd4+ {[%clk 0:00:01.5]}
64... Kxd4 {[%clk 0:00:09.3]} 65. Ke1 {[%clk 0:00:02.2]} 65... Kd3 {[%clk
0:00:09.7]} 0-1

[Event "*** Titled Tuesday Blitz"]
[Site "Chess.com"]
[Date "2021.03.09"]
[Round "8"]
[White "Konavets"]
[Black "dretch"]
[Result "1/2-1/2"]
[WhiteElo "2928"]
[BlackElo "2855"]
[TimeControl "180+1"]
[EndTime "11:32:45 PST"]
[Termination "Game drawn - insufficient material"]

1. e4 {[%clk 0:03:00.9]} 1... e6 {[%clk 0:02:59]} 2. d4 {[%clk 0:02:58.6]} 2...
d5 {[%clk 0:02:59.6]} 3. Nc3 {[%clk 0:02:58.9]} 3... Nf6 {[%clk 0:02:58.6]} 4.
e5 {[%clk 0:02:56.9]} 4... Nfd7 {[%clk 0:02:58.6]} 5. Nce2 {[%clk 0:02:57.2]}
5... c5 {[%clk 0:02:59.2]} 6. f4 {[%clk 0:02:57.5]} 6... Nc6 {[%clk 0:02:58.5]}
7. Nf3 {[%clk 0:02:57.8]} 7... Be7 {[%clk 0:02:52.4]} 8. Ng3 {[%clk 0:02:55.5]}
8... cxd4 {[%clk 0:02:49.6]} 9. Bd3 {[%clk 0:02:55.7]} 9... Nc5 {[%clk
0:02:42.9]} 10. O-O {[%clk 0:02:53.5]} 10... Qc7 {[%clk 0:02:40.3]} 11. f5
{[%clk 0:02:41.2]} 11... Nxd3 {[%clk 0:02:31.9]} 12. cxd3 {[%clk 0:02:39.9]}
12... exf5 {[%clk 0:02:31.1]} 13. Nh5 {[%clk 0:02:38.4]} 13... Rg8 {[%clk
0:02:11.7]} 14. Bd2 {[%clk 0:02:18.2]} 14... Be6 {[%clk 0:02:04]} 15. Rc1 {[%clk
0:02:18]} 15... Qb6 {[%clk 0:02:03.9]} 16. Bg5 {[%clk 0:02:09.9]} 16... Bxg5
{[%clk 0:01:50.2]} 17. Nxg5 {[%clk 0:02:09.4]} 17... h6 {[%clk 0:01:50.3]} 18.
Nf3 {[%clk 0:01:59.1]} 18... O-O-O {[%clk 0:01:44.3]} 19. b4 {[%clk 0:01:46.5]}
19... Kb8 {[%clk 0:01:44.1]} 20. a3 {[%clk 0:01:44.5]} 20... Rc8 {[%clk
0:01:38.7]} 21. Rc5 {[%clk 0:01:38]} 21... a5 {[%clk 0:01:35.9]} 22. Qa4 {[%clk
0:00:58.7]} 22... axb4 {[%clk 0:01:34.2]} 23. Rfc1 {[%clk 0:00:58.5]} 23... Qa7
{[%clk 0:01:23.8]} 24. Qxa7+ {[%clk 0:00:13.8]} 24... Kxa7 {[%clk 0:01:24.6]}
25. axb4 {[%clk 0:00:12.9]} 25... Nxb4 {[%clk 0:01:25.3]} 26. Ra5+ {[%clk
0:00:06.9]} 26... Kb6 {[%clk 0:01:20.8]} 27. Rca1 {[%clk 0:00:07.1]} 27... Nxd3
{[%clk 0:01:14.9]} 28. Nxd4 {[%clk 0:00:06.2]} 28... Rc1+ {[%clk 0:00:40.4]} 29.
Rxc1 {[%clk 0:00:05.8]} 29... Nxc1 {[%clk 0:00:41.3]} 30. Rb5+ {[%clk
0:00:06.5]} 30... Ka6 {[%clk 0:00:40.7]} 31. Nf4 {[%clk 0:00:07.4]} 31... Rc8
{[%clk 0:00:26.3]} 32. Rb1 {[%clk 0:00:07.6]} 32... Rc4 {[%clk 0:00:14]} 33.
Ra1+ {[%clk 0:00:04.2]} 33... Kb6 {[%clk 0:00:13.3]} 34. Rb1+ {[%clk 0:00:04.8]}
34... Ka7 {[%clk 0:00:12.7]} 35. Nb5+ {[%clk 0:00:02.9]} 35... Kb8 {[%clk
0:00:12.4]} 36. Nxe6 {[%clk 0:00:03.4]} 36... fxe6 {[%clk 0:00:12]} 37. Nd6
{[%clk 0:00:04]} 37... Rc7 {[%clk 0:00:12.2]} 38. Ne8 {[%clk 0:00:04.5]} 38...
Rc6 {[%clk 0:00:11.8]} 39. Nxg7 {[%clk 0:00:04.2]} 39... Nd3 {[%clk 0:00:11.6]}
40. h4 {[%clk 0:00:03.5]} 40... Nxe5 {[%clk 0:00:11.6]} 41. Re1 {[%clk
0:00:03.5]} 41... Ng4 {[%clk 0:00:11.9]} 42. Nxe6 {[%clk 0:00:03.2]} 42... Kc8
{[%clk 0:00:12]} 43. Nd4 {[%clk 0:00:03.5]} 43... Rf6 {[%clk 0:00:11.2]} 44. Re7
{[%clk 0:00:03.7]} 44... f4 {[%clk 0:00:10.3]} 45. Kf1 {[%clk 0:00:03.5]} 45...
Ne3+ {[%clk 0:00:10.2]} 46. Kf2 {[%clk 0:00:03.7]} 46... Nf5 {[%clk 0:00:10.2]}
47. Nxf5 {[%clk 0:00:03.5]} 47... Rxf5 {[%clk 0:00:11.1]} 48. Re6 {[%clk
0:00:03.4]} 48... h5 {[%clk 0:00:11.2]} 49. Kf3 {[%clk 0:00:03]} 49... Kc7
{[%clk 0:00:11.2]} 50. Re7+ {[%clk 0:00:03.3]} 50... Kc6 {[%clk 0:00:11.5]} 51.
Rg7 {[%clk 0:00:03]} 51... b5 {[%clk 0:00:11.6]} 52. Rg6+ {[%clk 0:00:03.5]}
52... Kc5 {[%clk 0:00:11.7]} 53. Rg8 {[%clk 0:00:02.6]} 53... d4 {[%clk
0:00:11]} 54. Rc8+ {[%clk 0:00:03.5]} 54... Kd5 {[%clk 0:00:10.5]} 55. Rd8+
{[%clk 0:00:03.8]} 55... Kc4 {[%clk 0:00:10.3]} 56. Ke4 {[%clk 0:00:04.7]} 56...
Rf7 {[%clk 0:00:09.6]} 57. Rxd4+ {[%clk 0:00:05]} 57... Kc3 {[%clk 0:00:10.2]}
58. Rd5 {[%clk 0:00:05.6]} 58... b4 {[%clk 0:00:10.6]} 59. Rxh5 {[%clk
0:00:05.8]} 59... b3 {[%clk 0:00:10.2]} 60. Rb5 {[%clk 0:00:05.7]} 60... Rh7
{[%clk 0:00:09]} 61. Kxf4 {[%clk 0:00:05.4]} 61... Rxh4+ {[%clk 0:00:09]} 62. g4
{[%clk 0:00:06]} 62... b2 {[%clk 0:00:05.9]} 63. Kf5 {[%clk 0:00:06.5]} 63...
Rh8 {[%clk 0:00:01.9]} 64. g5 {[%clk 0:00:06.7]} 64... Rf8+ {[%clk 0:00:02.2]}
65. Kg4 {[%clk 0:00:06.9]} 65... Rf1 {[%clk 0:00:01.5]} 66. g6 {[%clk
0:00:07.1]} 66... Rg1+ {[%clk 0:00:02.4]} 67. Kf5 {[%clk 0:00:07.4]} 67... b1=Q+
{[%clk 0:00:02.6]} 68. Rxb1 {[%clk 0:00:07.5]} 68... Rxb1 {[%clk 0:00:03.5]} 69.
g7 {[%clk 0:00:08.2]} 69... Rg1 {[%clk 0:00:03.8]} 70. Kf6 {[%clk 0:00:08.8]}
70... Kd4 {[%clk 0:00:04.7]} 71. Kf7 {[%clk 0:00:09.2]} 71... Ke5 {[%clk
0:00:05.1]} 72. g8=Q {[%clk 0:00:09.8]} 72... Rxg8 {[%clk 0:00:05.4]} 73. Kxg8
{[%clk 0:00:10.7]} 1/2-1/2

[Event "*** Titled Tuesday Blitz"]
[Site "Chess.com"]
[Date "2021.03.09"]
[Round "8"]
[White "imdvb6307"]
[Black "AlexSuv"]
[Result "1/2-1/2"]
[WhiteElo "2380"]
[BlackElo "2505"]
[TimeControl "180+1"]
[EndTime "11:32:46 PST"]
[Termination "Game drawn - insufficient material"]

1. e4 {[%clk 0:02:38.4]} 1... c5 {[%clk 0:02:53.7]} 2. Nf3 {[%clk 0:02:37.5]}
2... e6 {[%clk 0:02:46.8]} 3. c4 {[%clk 0:02:37.1]} 3... Nc6 {[%clk 0:02:46.7]}
4. Nc3 {[%clk 0:02:36.9]} 4... Nf6 {[%clk 0:02:46.2]} 5. Be2 {[%clk 0:02:35.4]}
5... Bd6 {[%clk 0:02:26]} 6. d4 {[%clk 0:02:26.9]} 6... cxd4 {[%clk 0:02:21.2]}
7. Nxd4 {[%clk 0:02:26.8]} 7... Bb4 {[%clk 0:02:21.4]} 8. f3 {[%clk 0:02:17.8]}
8... O-O {[%clk 0:01:57.9]} 9. Be3 {[%clk 0:02:15.3]} 9... Ne5 {[%clk 0:01:54]}
10. Rc1 {[%clk 0:02:01.6]} 10... d5 {[%clk 0:01:44.6]} 11. cxd5 {[%clk
0:01:31.7]} 11... exd5 {[%clk 0:01:40]} 12. O-O {[%clk 0:01:31.4]} 12... Bxc3
{[%clk 0:01:31.8]} 13. bxc3 {[%clk 0:01:24.8]} 13... dxe4 {[%clk 0:01:29.6]} 14.
Bg5 {[%clk 0:01:20.7]} 14... h6 {[%clk 0:01:16.3]} 15. Bh4 {[%clk 0:01:14.8]}
15... g5 {[%clk 0:01:13.8]} 16. Bf2 {[%clk 0:01:14.7]} 16... Qe7 {[%clk
0:00:53.1]} 17. h4 {[%clk 0:01:04.4]} 17... Ng6 {[%clk 0:00:49.2]} 18. hxg5
{[%clk 0:01:01]} 18... hxg5 {[%clk 0:00:50.1]} 19. Qd2 {[%clk 0:00:53.2]} 19...
Nf4 {[%clk 0:00:36.2]} 20. Bc4 {[%clk 0:00:46.1]} 20... exf3 {[%clk 0:00:31.6]}
21. gxf3 {[%clk 0:00:39.2]} 21... Bh3 {[%clk 0:00:28.5]} 22. Rfe1 {[%clk
0:00:37.6]} 22... Qd7 {[%clk 0:00:21.9]} 23. Re5 {[%clk 0:00:34.8]} 23... Nh7
{[%clk 0:00:17.3]} 24. Be3 {[%clk 0:00:25.3]} 24... Ng6 {[%clk 0:00:12.3]} 25.
Rd5 {[%clk 0:00:24]} 25... Qe7 {[%clk 0:00:11.7]} 26. Re1 {[%clk 0:00:19.9]}
26... Qf6 {[%clk 0:00:12.1]} 27. Bxg5 {[%clk 0:00:18.1]} 27... Nxg5 {[%clk
0:00:11.6]} 28. Qxg5 {[%clk 0:00:18.6]} 28... Qxg5+ {[%clk 0:00:09.7]} 29. Rxg5
{[%clk 0:00:18.5]} 29... Kg7 {[%clk 0:00:10.3]} 30. Nb5 {[%clk 0:00:17.4]} 30...
Rae8 {[%clk 0:00:08.4]} 31. Rxe8 {[%clk 0:00:13]} 31... Rxe8 {[%clk 0:00:09.3]}
32. Nd6 {[%clk 0:00:12.8]} 32... Re5 {[%clk 0:00:05.8]} 33. Nxf7 {[%clk
0:00:10.9]} 33... Rxg5+ {[%clk 0:00:04]} 34. Nxg5 {[%clk 0:00:10.2]} 34... Bd7
{[%clk 0:00:03.8]} 35. Bd5 {[%clk 0:00:10]} 35... Kf6 {[%clk 0:00:04.2]} 36.
Ne4+ {[%clk 0:00:08.9]} 36... Ke5 {[%clk 0:00:04.8]} 37. Bxb7 {[%clk 0:00:09.3]}
37... Kf4 {[%clk 0:00:05.5]} 38. Kf2 {[%clk 0:00:09.5]} 38... Nh4 {[%clk
0:00:06.2]} 39. Nc5 {[%clk 0:00:09]} 39... Be8 {[%clk 0:00:05.8]} 40. Nd3+
{[%clk 0:00:08.8]} 40... Kf5 {[%clk 0:00:05.8]} 41. Kg3 {[%clk 0:00:08.8]} 41...
Ng6 {[%clk 0:00:05.6]} 42. Be4+ {[%clk 0:00:08.6]} 42... Kf6 {[%clk 0:00:06.5]}
43. Bxg6 {[%clk 0:00:08.5]} 43... Kxg6 {[%clk 0:00:07.4]} 44. Kf4 {[%clk
0:00:08.1]} 44... Kf6 {[%clk 0:00:08.3]} 45. Ke3 {[%clk 0:00:07.6]} 45... Bf7
{[%clk 0:00:08]} 46. f4 {[%clk 0:00:08.1]} 46... Bxa2 {[%clk 0:00:06.6]} 47. Nc5
{[%clk 0:00:08.1]} 47... Bd5 {[%clk 0:00:06.7]} 48. Kd4 {[%clk 0:00:05.7]} 48...
Bc6 {[%clk 0:00:07.2]} 49. Nb3 {[%clk 0:00:04.8]} 49... Kf5 {[%clk 0:00:07.5]}
50. Na5 {[%clk 0:00:04.8]} 50... Bb5 {[%clk 0:00:03.6]} 51. Ke3 {[%clk
0:00:05.3]} 51... a6 {[%clk 0:00:02.1]} 52. c4 {[%clk 0:00:05.4]} 52... Ba4
{[%clk 0:00:02.4]} 53. c5 {[%clk 0:00:05.6]} 53... Ke6 {[%clk 0:00:02.5]} 54.
Ke4 {[%clk 0:00:03.5]} 54... Bc2+ {[%clk 0:00:02.6]} 55. Kd4 {[%clk 0:00:03.7]}
55... Kf5 {[%clk 0:00:03]} 56. c6 {[%clk 0:00:03.9]} 56... Kxf4 {[%clk
0:00:03.5]} 57. c7 {[%clk 0:00:02.1]} 57... Bf5 {[%clk 0:00:03.9]} 58. Kc5
{[%clk 0:00:02.7]} 58... Ke5 {[%clk 0:00:04.1]} 59. Kb6 {[%clk 0:00:03.2]} 59...
Kd6 {[%clk 0:00:04]} 60. Nc6 {[%clk 0:00:03.6]} 60... Kd5 {[%clk 0:00:04.4]} 61.
Nb4+ {[%clk 0:00:03.7]} 61... Kd6 {[%clk 0:00:04.7]} 62. Nxa6 {[%clk 0:00:04.3]}
62... Bc8 {[%clk 0:00:04.3]} 63. Ka7 {[%clk 0:00:04.1]} 63... Bxa6 {[%clk
0:00:03.8]} 64. Kxa6 {[%clk 0:00:04.2]} 64... Kxc7 {[%clk 0:00:04.3]} 1/2-1/2

[Event "*** Titled Tuesday Blitz"]
[Site "Chess.com"]
[Date "2021.03.09"]
[Round "8"]
[White "Skatchkov_V"]
[Black "K_A_S_T_O_R"]
[Result "1-0"]
[WhiteElo "2639"]
[BlackElo "2790"]
[TimeControl "180+1"]
[EndTime "11:32:51 PST"]
[Termination "Skatchkov_V won on time"]

1. c4 {[%clk 0:02:59.2]} 1... c5 {[%clk 0:02:59]} 2. Nf3 {[%clk 0:02:58.6]} 2...
Nf6 {[%clk 0:02:59.3]} 3. Nc3 {[%clk 0:02:58.7]} 3... e6 {[%clk 0:02:59.5]} 4.
g3 {[%clk 0:02:57.9]} 4... b6 {[%clk 0:02:59.7]} 5. Bg2 {[%clk 0:02:58.2]} 5...
Bb7 {[%clk 0:03:00.2]} 6. O-O {[%clk 0:02:58.6]} 6... a6 {[%clk 0:03:00.6]} 7.
Re1 {[%clk 0:02:58.1]} 7... d6 {[%clk 0:03:00.4]} 8. e4 {[%clk 0:02:58.2]} 8...
Be7 {[%clk 0:03:00]} 9. d4 {[%clk 0:02:58.4]} 9... cxd4 {[%clk 0:03:00.9]} 10.
Nxd4 {[%clk 0:02:59.3]} 10... Qc7 {[%clk 0:03:01.5]} 11. Be3 {[%clk 0:02:57.4]}
11... Nbd7 {[%clk 0:03:01.8]} 12. f4 {[%clk 0:02:57.2]} 12... Rc8 {[%clk
0:03:02.2]} 13. Rc1 {[%clk 0:02:57.4]} 13... O-O {[%clk 0:03:00.7]} 14. g4
{[%clk 0:02:58]} 14... Nc5 {[%clk 0:03:00.5]} 15. Bf2 {[%clk 0:02:57]} 15... g6
{[%clk 0:03:00]} 16. f5 {[%clk 0:02:57.5]} 16... e5 {[%clk 0:02:43]} 17. g5
{[%clk 0:02:12.6]} 17... Nh5 {[%clk 0:02:20.5]} 18. f6 {[%clk 0:02:12.1]} 18...
exd4 {[%clk 0:02:19.8]} 19. fxe7 {[%clk 0:02:01.4]} 19... Qxe7 {[%clk
0:02:17.3]} 20. Qxd4 {[%clk 0:01:59.7]} 20... Qxg5 {[%clk 0:02:13.9]} 21. Nd5
{[%clk 0:01:58.6]} 21... Bxd5 {[%clk 0:02:10]} 22. exd5 {[%clk 0:01:54.9]} 22...
Rfe8 {[%clk 0:02:00]} 23. Be3 {[%clk 0:01:47.4]} 23... Qf6 {[%clk 0:01:48.6]}
24. b4 {[%clk 0:01:41.1]} 24... Nd7 {[%clk 0:01:41.1]} 25. Bh3 {[%clk
0:01:41.4]} 25... Ne5 {[%clk 0:01:14.7]} 26. Kh1 {[%clk 0:01:41.8]} 26... Rcd8
{[%clk 0:00:58.4]} 27. Rf1 {[%clk 0:01:40.5]} 27... Qe7 {[%clk 0:00:58.2]} 28.
Qxb6 {[%clk 0:01:16.2]} 28... Nxc4 {[%clk 0:00:53.9]} 29. Rxc4 {[%clk
0:01:17.1]} 29... Qxe3 {[%clk 0:00:53.3]} 30. Qxe3 {[%clk 0:01:18]} 30... Rxe3
{[%clk 0:00:52.4]} 31. Bg4 {[%clk 0:01:16.3]} 31... Ng7 {[%clk 0:00:48.5]} 32.
Rc6 {[%clk 0:01:16.2]} 32... Ra3 {[%clk 0:00:47.7]} 33. Rf2 {[%clk 0:01:05.6]}
33... Ne8 {[%clk 0:00:32.9]} 34. Kg2 {[%clk 0:00:53.4]} 34... Kg7 {[%clk
0:00:31.8]} 35. Be2 {[%clk 0:00:45.5]} 35... Rxa2 {[%clk 0:00:27.1]} 36. Bxa6
{[%clk 0:00:45]} 36... Ra4 {[%clk 0:00:20.6]} 37. b5 {[%clk 0:00:42.7]} 37...
Rb4 {[%clk 0:00:20.7]} 38. b6 {[%clk 0:00:41.6]} 38... Rb8 {[%clk 0:00:18.8]}
39. b7 {[%clk 0:00:41.1]} 39... R4xb7 {[%clk 0:00:18.6]} 40. Bxb7 {[%clk
0:00:41.3]} 40... Rxb7 {[%clk 0:00:19.5]} 41. Re2 {[%clk 0:00:40.7]} 41... Rb8
{[%clk 0:00:19.7]} 42. Ra6 {[%clk 0:00:37.9]} 42... Rd8 {[%clk 0:00:18.4]} 43.
Ra7 {[%clk 0:00:37.9]} 43... Nf6 {[%clk 0:00:18.5]} 44. Ree7 {[%clk 0:00:38.2]}
44... Rf8 {[%clk 0:00:18.7]} 45. Ra5 {[%clk 0:00:38.1]} 45... Nh5 {[%clk
0:00:18.4]} 46. Rd7 {[%clk 0:00:37.1]} 46... Nf4+ {[%clk 0:00:18.4]} 47. Kf3
{[%clk 0:00:35.3]} 47... Nd3 {[%clk 0:00:18.9]} 48. Rxd6 {[%clk 0:00:34.9]}
48... Ne5+ {[%clk 0:00:18.8]} 49. Kg2 {[%clk 0:00:33.9]} 49... Nc4 {[%clk
0:00:19.7]} 50. Rda6 {[%clk 0:00:33.6]} 50... Nxa5 {[%clk 0:00:19.7]} 51. Rxa5
{[%clk 0:00:34.5]} 51... Rd8 {[%clk 0:00:20.3]} 52. Kf3 {[%clk 0:00:35.1]} 52...
f5 {[%clk 0:00:16.3]} 53. Kf4 {[%clk 0:00:35.1]} 53... Rd6 {[%clk 0:00:14.8]}
54. Ke5 {[%clk 0:00:35.3]} 54... Rd8 {[%clk 0:00:13.7]} 55. Ra7+ {[%clk
0:00:35.7]} 55... Kf8 {[%clk 0:00:11.2]} 56. d6 {[%clk 0:00:36.6]} 56... f4
{[%clk 0:00:08.3]} 57. Rxh7 {[%clk 0:00:34.7]} 57... Re8+ {[%clk 0:00:08.1]} 58.
Kxf4 {[%clk 0:00:33.9]} 58... Re2 {[%clk 0:00:08]} 59. d7 {[%clk 0:00:29.4]}
59... Rd2 {[%clk 0:00:07.4]} 60. h4 {[%clk 0:00:25.2]} 60... Rd5 {[%clk
0:00:06.7]} 61. Ke4 {[%clk 0:00:25.3]} 61... Rd1 {[%clk 0:00:06.4]} 62. Ke5
{[%clk 0:00:25.9]} 62... Rd2 {[%clk 0:00:03.1]} 63. Kf6 {[%clk 0:00:26.2]} 63...
Rd6+ {[%clk 0:00:02.9]} 64. Ke5 {[%clk 0:00:26.8]} 64... Rd1 {[%clk 0:00:02.7]}
65. Kf4 {[%clk 0:00:27.1]} 65... Rd5 {[%clk 0:00:02.3]} 66. Kg4 {[%clk
0:00:27.2]} 1-0

[Event "*** Titled Tuesday Blitz"]
[Site "Chess.com"]
[Date "2021.03.09"]
[Round "8"]
[White "samidescalona2002"]
[Black "Herman-NY"]
[Result "1/2-1/2"]
[WhiteElo "2293"]
[BlackElo "2448"]
[TimeControl "180+1"]
[EndTime "11:32:53 PST"]
[Termination "Game drawn by repetition"]

1. d4 {[%clk 0:03:00.9]} 1... Nf6 {[%clk 0:02:59.5]} 2. Bf4 {[%clk 0:03:00.2]}
2... g6 {[%clk 0:02:57.8]} 3. e3 {[%clk 0:03:00.2]} 3... Bg7 {[%clk 0:02:57.9]}
4. h3 {[%clk 0:03:00]} 4... O-O {[%clk 0:02:58.3]} 5. Nf3 {[%clk 0:02:59.2]}
5... d6 {[%clk 0:02:58.5]} 6. c4 {[%clk 0:02:58.8]} 6... b6 {[%clk 0:02:58.7]}
7. Nc3 {[%clk 0:02:58]} 7... c5 {[%clk 0:02:59.1]} 8. d5 {[%clk 0:02:56]} 8...
a6 {[%clk 0:02:57.4]} 9. a4 {[%clk 0:02:55.4]} 9... a5 {[%clk 0:02:56.6]} 10.
Bd3 {[%clk 0:02:46.4]} 10... Na6 {[%clk 0:02:56.8]} 11. O-O {[%clk 0:02:44.7]}
11... Nb4 {[%clk 0:02:57.2]} 12. e4 {[%clk 0:02:38.8]} 12... Nh5 {[%clk
0:02:42.5]} 13. Bh2 {[%clk 0:02:37.7]} 13... e5 {[%clk 0:02:40.5]} 14. dxe6
{[%clk 0:02:34.1]} 14... fxe6 {[%clk 0:02:39.3]} 15. Be2 {[%clk 0:01:47.7]}
15... e5 {[%clk 0:02:14.2]} 16. Ne1 {[%clk 0:01:38.7]} 16... Nf4 {[%clk
0:02:07.3]} 17. Bg4 {[%clk 0:01:36.9]} 17... Ne6 {[%clk 0:01:54.3]} 18. Bxe6+
{[%clk 0:01:32.7]} 18... Bxe6 {[%clk 0:01:54.2]} 19. b3 {[%clk 0:01:33.3]} 19...
Bh6 {[%clk 0:01:48.6]} 20. Nb5 {[%clk 0:01:29.8]} 20... Bf4 {[%clk 0:01:10]} 21.
Nd3 {[%clk 0:01:09.1]} 21... Bxh2+ {[%clk 0:00:57]} 22. Kxh2 {[%clk 0:01:10]}
22... Nc6 {[%clk 0:00:54.4]} 23. Qd2 {[%clk 0:01:07.3]} 23... Qe7 {[%clk
0:00:40]} 24. Rad1 {[%clk 0:00:55.1]} 24... g5 {[%clk 0:00:27.4]} 25. f3 {[%clk
0:00:50.9]} 25... Rad8 {[%clk 0:00:23.5]} 26. Qf2 {[%clk 0:00:40.5]} 26... Kh8
{[%clk 0:00:21]} 27. Qg3 {[%clk 0:00:39.4]} 27... Bc8 {[%clk 0:00:19.7]} 28. Rd2
{[%clk 0:00:38.6]} 28... Ba6 {[%clk 0:00:18.8]} 29. Nc3 {[%clk 0:00:33.1]} 29...
Nd4 {[%clk 0:00:18.9]} 30. Nd5 {[%clk 0:00:33]} 30... Qg7 {[%clk 0:00:19.2]} 31.
Nc1 {[%clk 0:00:31.1]} 31... Rb8 {[%clk 0:00:16.3]} 32. Rfd1 {[%clk 0:00:29.9]}
32... Bc8 {[%clk 0:00:15.5]} 33. Qf2 {[%clk 0:00:25.3]} 33... Be6 {[%clk
0:00:15.5]} 34. Ne2 {[%clk 0:00:24]} 34... Nxb3 {[%clk 0:00:13]} 35. Rb2 {[%clk
0:00:23.2]} 35... Bxd5 {[%clk 0:00:10.5]} 36. Rxd5 {[%clk 0:00:21.6]} 36... Nd4
{[%clk 0:00:08.6]} 37. Rxd6 {[%clk 0:00:21.3]} 37... Rf6 {[%clk 0:00:08.6]} 38.
Rd5 {[%clk 0:00:16.8]} 38... Rh6 {[%clk 0:00:07.1]} 39. Ng3 {[%clk 0:00:15.3]}
39... Rf8 {[%clk 0:00:06.5]} 40. Qe3 {[%clk 0:00:11.1]} 40... Rh4 {[%clk
0:00:04.6]} 41. Nf5 {[%clk 0:00:09.2]} 41... Nxf5 {[%clk 0:00:04.3]} 42. exf5
{[%clk 0:00:10.1]} 42... Rxc4 {[%clk 0:00:03.1]} 43. Rxb6 {[%clk 0:00:11]} 43...
Rxa4 {[%clk 0:00:03.1]} 44. Re6 {[%clk 0:00:10]} 44... Rf4 {[%clk 0:00:03.3]}
45. Rdxe5 {[%clk 0:00:09.3]} 45... R4xf5 {[%clk 0:00:03.4]} 46. Re7 {[%clk
0:00:10.1]} 46... Qf6 {[%clk 0:00:03.2]} 47. R5e6 {[%clk 0:00:09.4]} 47... Qd4
{[%clk 0:00:03.1]} 48. Qxd4+ {[%clk 0:00:07.6]} 48... cxd4 {[%clk 0:00:04]} 49.
Ra7 {[%clk 0:00:06.7]} 49... Rd5 {[%clk 0:00:03.9]} 50. Ree7 {[%clk 0:00:05.3]}
50... Rfd8 {[%clk 0:00:03.2]} 51. Rxh7+ {[%clk 0:00:04.4]} 51... Kg8 {[%clk
0:00:04.1]} 52. Rhg7+ {[%clk 0:00:04.5]} 52... Kh8 {[%clk 0:00:04.7]} 53. Rh7+
{[%clk 0:00:03.4]} 53... Kg8 {[%clk 0:00:05.3]} 54. Rhg7+ {[%clk 0:00:03.3]}
54... Kf8 {[%clk 0:00:05.9]} 55. Rgf7+ {[%clk 0:00:02.1]} 55... Kg8 {[%clk
0:00:06.2]} 56. f4 {[%clk 0:00:02.2]} 56... g4 {[%clk 0:00:06]} 57. Rg7+ {[%clk
0:00:01.5]} 57... Kf8 {[%clk 0:00:06.1]} 58. hxg4 {[%clk 0:00:02.4]} 58... d3
{[%clk 0:00:06.7]} 59. Rh7 {[%clk 0:00:02.8]} 59... Kg8 {[%clk 0:00:06.9]} 60.
Rhf7 {[%clk 0:00:02]} 60... d2 {[%clk 0:00:06.8]} 61. Rg7+ {[%clk 0:00:02]}
61... Kh8 {[%clk 0:00:07.3]} 62. Rh7+ {[%clk 0:00:01.6]} 62... Kg8 {[%clk
0:00:07.9]} 63. Rhg7+ {[%clk 0:00:02.3]} 63... Kf8 {[%clk 0:00:08.5]} 64. Rgf7+
{[%clk 0:00:01.1]} 64... Kg8 {[%clk 0:00:08.4]} 65. Rg7+ {[%clk 0:00:01]}
1/2-1/2